{"text_format":"1","workbook":"xlsx","n_sheets":6,"sheets":["Facts","HELP","Bars","Text","Code","Definition"],"not_rendered":{"charts":0,"images":1,"macros":1,"external_links":0,"defined_names":1,"comments":1,"pivot_tables":0},"unopened":[],"bounds":{"document_bytes":16777216,"sheet_cells":100000,"rows_first":2000,"rows_last":500,"rows_between":2000,"halvings":0,"cell_chars":16384,"cell_head_chars":4096},"cells_cut":0,"cells_raw":0,"read":"whole","date_system":"1900"}

{"sheet":"Facts","index":0,"n_rows":40,"n_cols":3,"rows_kept":40,"cut":false,"hidden":false,"merged":[]}
[null,"v1 May 2021 by R. Jut"]
[null,"General:"]
[null,null,"The quality of the code is expressed in ANSI/ISO grade and can be 0-4 or A-F. Where A and 4 are the highest. (4/A, 3/B, 2/C, 1/D, and 0/F)"]
[null,null,"The ANSI grade determines the fault rate in the decoding process of a scanner. "]
[null,null,"Minumum value for MHS systems and scanner suppliers is ANSI grade B / ISO grade 3."]
[null,null,"The barcode is usually black/white for good contrast."]
[null,null,"Other colours can give good contrast depending on the scanner type (laser, camera). Always check with supplier."]
[null,"Code 128:"]
[null,null,"Code 128 EAN or GS1-128 is not a barcode definition. It is an standard on data encoding. It uses Code 128 as a symbology."]
[null,null,"Each stripe and space can have a thickness of 1,2,3 or 4 times a so called x-dimension (bar width)"]
[null,null,"Each symbol is encoded with 6 stripes and spaces. It starts with a stripe and ends with a space."]
[null,null,"The sum of the widths of the symbols stripes and spaces is always 11"]
[null,null,"A so-called quiet zone (white space) is required for the decoder to detect the barcode. This should be >= 10*x"]
[null,"Sets:"]
[null,null,"It supports 3 symbol sets called A, B and C"]
[null,null,"Set A and B have large overlap and both support most used symbols and upper case letters."]
[null,null,"Set A is used when control characters are needed."]
[null,null,"Set B is used when lower case letters are needed"]
[null,null,"Set C is used for numbers only"]
[null,null,"Set C defines 2 numbers in 1 symbol, resulting in a more compact code."]
[null,null,"Sets can also be switched inside the code with the <CODE A>, <CODE B> or <CODE C> symbols"]
[null,null,"A set C code always has an even number of digits but an uneven number of symbols because of the <START C>, <CC> and <STOP>"]
[null,"Encoding:"]
[null,null,"It always begins with a symbol <START A>, <START B> or <START C> that defines the character set"]
[null,null,"It always has a checksum symbol <CC> just before the end"]
[null,null,"It ends with a <STOP> symbol. This symbol has 7 elements (because it needs to end with a stripe)"]
[null,null,"When a mix is needed in sets then usually there are several possibilities for the coding. Different barcode software generators may give different results."]
[null,"Text:"]
[null,null,"The text below the barcode is not always exactly what is encoded. Text is for human reading and may contains spaces or separation char for clarity."]
[null,null,"E.g. EAN128 shows ( ) around so-called application identifiers in the human readable text. These are not encoded in the barcode."]
[null,"Nr Chars:"]
[null,null,"The number of symbols in the barcode can be calculated by counting the number of stripes in the barcode = (stripes -1) / 3"]
[null,null,"The max payload in the barcode = symbols -3 (minus <START>, <CC>, <STOP>). The human readable chars are then equal to the payload for set A/B or 2*payload for set C"]
[null,null,"The payload is less if set switching is used or special FNC codes are used in the barcode."]
[null,"Length:"]
[null,null,"The length of 1 symbol is 11*x"]
[null,null,"For Code A/B the length of the barcode without the quiet zone is = (11*n+35)*x. "]
[null,null,"For Code C the length of the barcode without the quiet zone is = (5.5*n+35)*x. "]
[]
[null,null,"Where n is nr of human readable characters and x is the x-dimension, 35 is added for the <START>, <CC> and <STOP> (11+11+13)"]

{"sheet":"HELP","index":1,"n_rows":44,"n_cols":3,"rows_kept":44,"cut":false,"hidden":false,"merged":[]}
[null,"BARS sheet usage:"]
[null,null,"Use this sheet if you have a barcode but no readable text and have to use the stripes and spaces to decode it"]
[null,null,"Only fill in the yellow marked cells"]
[null,null,"Each cell has a drop down of the elements column from the definition table on Definition sheet."]
[null,null,"Try to best guess the first starting character and select the appropriate symbol from the dropdown"]
[null,null,"A code will be generated in the red square with the selection from the yellow cells"]
[null,null,"Copy and paste an image of you barcode under investigation directly below the generated barcode."]
[null,null,"Shift and scale the image so that it matches the beginning of the code and you can visually check if the (partially) generated code matches the beginning"]
[null,null,"If there is a match you continue with the next symbol"]
[null,null,"If you come to the second last symbol (=checksum) enter a random selected symbol for the checksum"]
[null,null,"As the last symbol you should select the <STOP> character"]
[null,null,"Now in red tekst the content of the selection is shown in 'coded' format. This also contains <CC#x->y#> "]
[null,null,"Here x is the selection you made for the checksum which most likely was not correct."]
[null,null,"Here y is the calculated checksum by the tool. Go to the definition sheet and in the colum 'Dec' find the value y and copy the value of the 'elements'  column on the same row."]
[null,null,"Now paste this value in the checksum position in the BARS sheet. The coded format should now contain <CCy> meaning you have entered the correct checksum"]
[]
[null,"TEXT sheet usage:"]
[null,null,"Use this sheet if you think the human readable text is representative, or very close to, for the contents of the barcode."]
[null,null,"This sheet only generates barcode with set B or C or a mix of B/C. So not set A."]
[null,null,"Max nr of supported symbols in the code is 20."]
[null,null,"A code will be generated in the red square with the selection from the yellow cells"]
[null,null,"It will start with set C or switch to set C if there are 4 or more numbers to be decoded, otherwise it starts or switches to set B"]
[null,null,"Enter the human readable text of the barcode under investigation in the yellow marked cell"]
[null,null,"Copy and paste an image of you barcode under investigation directly below the generated barcode."]
[null,null,"Shift and scale the image so that it matches the beginning of the code and you can visually check if the (partially) generated code matches the beginning"]
[null,null,"Check if the length of the images matches the generated barcode. Leave out or include special chars to try to match the length."]
[null,null,"Future: entering a special char within the string to force a certain code set or include special codes"]
[]
[null,"CODE sheet usage:"]
[null,null,"Use this sheet if you have most of the human readable text but want control over each symbol inside the barcode compared to the TEXT sheet"]
[null,null,"Only fill in the yellow marked cells. For each position select a value from Code set A, B or C."]
[null,null,"The first symbol should always be a <START x> char"]
[null,null,"The DecX rows show the decimal value of the selection for the appropriate Code Set or otherwise FALSE"]
[null,null,"The Dec row shows the decimal value selected for one of the code sets."]
[null,null,"A code will be generated in the red square with the selection from the yellow cells"]
[null,null,"Copy and paste an image of you barcode under investigation directly below the generated barcode."]
[null,null,"Shift and scale the image so that it matches the beginning of the code and you can visually check if the (partially) generated code matches the beginning"]
[null,null,"If there is a match you continue with the next symbol"]
[null,null,"If you come to the second last symbol (=checksum) enter a random selected symbol for the checksum"]
[null,null,"As the last symbol you should select the <STOP> character"]
[null,null,"Now in red tekst the content of the selection is shown in 'coded' format. This also contains <CC#x->y#> "]
[null,null,"Here x is the selection you made for the checksum which most likely was not correct."]
[null,null,"Here y is the calculated checksum by the tool. Go to the definition sheet and in the colum 'Code x' find the value y and copy the value of the 'elements'  column on the same row."]
[null,null,"Now paste this value in the checksum position in the BARS sheet. The coded format should now contain <CCy> meaning you have entered the correct checksum"]

{"sheet":"Bars","index":2,"n_rows":15,"n_cols":22,"rows_kept":15,"cut":false,"hidden":false,"merged":[[11,2,11,21]]}
[null,"Symbol",1,2,3,4,5,6,7,8,9,10,11,12,13,14,15,16,17,18,19,20]
[null,"Weight",1,1,2,3,4,5,6,7,8,9,10,11,12,13,14,15,16,17,18,19]
[null,"Dec",{"$f":"VLOOKUP(C$8,Definition!$A$2:$H$108,3,FALSE)","v":105},{"$f":"VLOOKUP(D$8,Definition!$A$2:$H$108,3,FALSE)","v":20},{"$f":"VLOOKUP(E$8,Definition!$A$2:$H$108,3,FALSE)","v":0},{"$f":"VLOOKUP(F$8,Definition!$A$2:$H$108,3,FALSE)","v":0},{"$f":"VLOOKUP(G$8,Definition!$A$2:$H$108,3,FALSE)","v":1},{"$f":"VLOOKUP(H$8,Definition!$A$2:$H$108,3,FALSE)","v":100},{"$f":"VLOOKUP(I$8,Definition!$A$2:$H$108,3,FALSE)","v":13},{"$f":"VLOOKUP(J$8,Definition!$A$2:$H$108,3,FALSE)","v":17},{"$f":"VLOOKUP(K$8,Definition!$A$2:$H$108,3,FALSE)","v":2},{"$f":"VLOOKUP(L$8,Definition!$A$2:$H$108,3,FALSE)","v":106},{"$f":"VLOOKUP(M$8,Definition!$A$2:$H$108,3,FALSE)","v":{"$error":"#N/A"}},{"$f":"VLOOKUP(N$8,Definition!$A$2:$H$108,3,FALSE)","v":{"$error":"#N/A"}},{"$f":"VLOOKUP(O$8,Definition!$A$2:$H$108,3,FALSE)","v":{"$error":"#N/A"}},{"$f":"VLOOKUP(P$8,Definition!$A$2:$H$108,3,FALSE)","v":{"$error":"#N/A"}},{"$f":"VLOOKUP(Q$8,Definition!$A$2:$H$108,3,FALSE)","v":{"$error":"#N/A"}},{"$f":"VLOOKUP(R$8,Definition!$A$2:$H$108,3,FALSE)","v":{"$error":"#N/A"}},{"$f":"VLOOKUP(S$8,Definition!$A$2:$H$108,3,FALSE)","v":{"$error":"#N/A"}},{"$f":"VLOOKUP(T$8,Definition!$A$2:$H$108,3,FALSE)","v":{"$error":"#N/A"}},{"$f":"VLOOKUP(U$8,Definition!$A$2:$H$108,3,FALSE)","v":{"$error":"#N/A"}},{"$f":"VLOOKUP(V$8,Definition!$A$2:$H$108,3,FALSE)","v":{"$error":"#N/A"}}]
[null,"CodeA",{"$f":"VLOOKUP(C$8,Definition!$A$2:$H$108,4,FALSE)","v":"START C"},{"$f":"VLOOKUP(D$8,Definition!$A$2:$H$108,4,FALSE)","v":4},{"$f":"VLOOKUP(E$8,Definition!$A$2:$H$108,4,FALSE)","v":"SP"},{"$f":"VLOOKUP(F$8,Definition!$A$2:$H$108,4,FALSE)","v":"SP"},{"$f":"VLOOKUP(G$8,Definition!$A$2:$H$108,4,FALSE)","v":"!"},{"$f":"VLOOKUP(H$8,Definition!$A$2:$H$108,4,FALSE)","v":"CODE B"},{"$f":"VLOOKUP(I$8,Definition!$A$2:$H$108,4,FALSE)","v":"-"},{"$f":"VLOOKUP(J$8,Definition!$A$2:$H$108,4,FALSE)","v":1},{"$f":"VLOOKUP(K$8,Definition!$A$2:$H$108,4,FALSE)","v":"\""},{"$f":"VLOOKUP(L$8,Definition!$A$2:$H$108,4,FALSE)","v":"STOP"},{"$f":"VLOOKUP(M$8,Definition!$A$2:$H$108,4,FALSE)","v":{"$error":"#N/A"}},{"$f":"VLOOKUP(N$8,Definition!$A$2:$H$108,4,FALSE)","v":{"$error":"#N/A"}},{"$f":"VLOOKUP(O$8,Definition!$A$2:$H$108,4,FALSE)","v":{"$error":"#N/A"}},{"$f":"VLOOKUP(P$8,Definition!$A$2:$H$108,4,FALSE)","v":{"$error":"#N/A"}},{"$f":"VLOOKUP(Q$8,Definition!$A$2:$H$108,4,FALSE)","v":{"$error":"#N/A"}},{"$f":"VLOOKUP(R$8,Definition!$A$2:$H$108,4,FALSE)","v":{"$error":"#N/A"}},{"$f":"VLOOKUP(S$8,Definition!$A$2:$H$108,4,FALSE)","v":{"$error":"#N/A"}},{"$f":"VLOOKUP(T$8,Definition!$A$2:$H$108,4,FALSE)","v":{"$error":"#N/A"}},{"$f":"VLOOKUP(U$8,Definition!$A$2:$H$108,4,FALSE)","v":{"$error":"#N/A"}},{"$f":"VLOOKUP(V$8,Definition!$A$2:$H$108,4,FALSE)","v":{"$error":"#N/A"}}]
[null,"CodeB",{"$f":"VLOOKUP(C$8,Definition!$A$2:$H$108,5,FALSE)","v":"START C"},{"$f":"VLOOKUP(D$8,Definition!$A$2:$H$108,5,FALSE)","v":4},{"$f":"VLOOKUP(E$8,Definition!$A$2:$H$108,5,FALSE)","v":"SP"},{"$f":"VLOOKUP(F$8,Definition!$A$2:$H$108,5,FALSE)","v":"SP"},{"$f":"VLOOKUP(G$8,Definition!$A$2:$H$108,5,FALSE)","v":"!"},{"$f":"VLOOKUP(H$8,Definition!$A$2:$H$108,5,FALSE)","v":"FNC 4"},{"$f":"VLOOKUP(I$8,Definition!$A$2:$H$108,5,FALSE)","v":"-"},{"$f":"VLOOKUP(J$8,Definition!$A$2:$H$108,5,FALSE)","v":1},{"$f":"VLOOKUP(K$8,Definition!$A$2:$H$108,5,FALSE)","v":"\""},{"$f":"VLOOKUP(L$8,Definition!$A$2:$H$108,5,FALSE)","v":"STOP"},{"$f":"VLOOKUP(M$8,Definition!$A$2:$H$108,5,FALSE)","v":{"$error":"#N/A"}},{"$f":"VLOOKUP(N$8,Definition!$A$2:$H$108,5,FALSE)","v":{"$error":"#N/A"}},{"$f":"VLOOKUP(O$8,Definition!$A$2:$H$108,5,FALSE)","v":{"$error":"#N/A"}},{"$f":"VLOOKUP(P$8,Definition!$A$2:$H$108,5,FALSE)","v":{"$error":"#N/A"}},{"$f":"VLOOKUP(Q$8,Definition!$A$2:$H$108,5,FALSE)","v":{"$error":"#N/A"}},{"$f":"VLOOKUP(R$8,Definition!$A$2:$H$108,5,FALSE)","v":{"$error":"#N/A"}},{"$f":"VLOOKUP(S$8,Definition!$A$2:$H$108,5,FALSE)","v":{"$error":"#N/A"}},{"$f":"VLOOKUP(T$8,Definition!$A$2:$H$108,5,FALSE)","v":{"$error":"#N/A"}},{"$f":"VLOOKUP(U$8,Definition!$A$2:$H$108,5,FALSE)","v":{"$error":"#N/A"}},{"$f":"VLOOKUP(V$8,Definition!$A$2:$H$108,5,FALSE)","v":{"$error":"#N/A"}}]
[null,"CodeC",{"$f":"VLOOKUP(C$8,Definition!$A$2:$H$108,6,FALSE)","v":"START C"},{"$f":"VLOOKUP(D$8,Definition!$A$2:$H$108,6,FALSE)","v":20},{"$f":"VLOOKUP(E$8,Definition!$A$2:$H$108,6,FALSE)","v":"00"},{"$f":"VLOOKUP(F$8,Definition!$A$2:$H$108,6,FALSE)","v":"00"},{"$f":"VLOOKUP(G$8,Definition!$A$2:$H$108,6,FALSE)","v":"01"},{"$f":"VLOOKUP(H$8,Definition!$A$2:$H$108,6,FALSE)","v":"CODE B"},{"$f":"VLOOKUP(I$8,Definition!$A$2:$H$108,6,FALSE)","v":13},{"$f":"VLOOKUP(J$8,Definition!$A$2:$H$108,6,FALSE)","v":17},{"$f":"VLOOKUP(K$8,Definition!$A$2:$H$108,6,FALSE)","v":"02"},{"$f":"VLOOKUP(L$8,Definition!$A$2:$H$108,6,FALSE)","v":"STOP"},{"$f":"VLOOKUP(M$8,Definition!$A$2:$H$108,6,FALSE)","v":{"$error":"#N/A"}},{"$f":"VLOOKUP(N$8,Definition!$A$2:$H$108,6,FALSE)","v":{"$error":"#N/A"}},{"$f":"VLOOKUP(O$8,Definition!$A$2:$H$108,6,FALSE)","v":{"$error":"#N/A"}},{"$f":"VLOOKUP(P$8,Definition!$A$2:$H$108,6,FALSE)","v":{"$error":"#N/A"}},{"$f":"VLOOKUP(Q$8,Definition!$A$2:$H$108,6,FALSE)","v":{"$error":"#N/A"}},{"$f":"VLOOKUP(R$8,Definition!$A$2:$H$108,6,FALSE)","v":{"$error":"#N/A"}},{"$f":"VLOOKUP(S$8,Definition!$A$2:$H$108,6,FALSE)","v":{"$error":"#N/A"}},{"$f":"VLOOKUP(T$8,Definition!$A$2:$H$108,6,FALSE)","v":{"$error":"#N/A"}},{"$f":"VLOOKUP(U$8,Definition!$A$2:$H$108,6,FALSE)","v":{"$error":"#N/A"}},{"$f":"VLOOKUP(V$8,Definition!$A$2:$H$108,6,FALSE)","v":{"$error":"#N/A"}}]
[null,"ASCII",{"$f":"VLOOKUP(C$8,Definition!$A$2:$H$108,7,FALSE)","v":210},{"$f":"VLOOKUP(D$8,Definition!$A$2:$H$108,7,FALSE)","v":52},{"$f":"VLOOKUP(E$8,Definition!$A$2:$H$108,7,FALSE)","v":32},{"$f":"VLOOKUP(F$8,Definition!$A$2:$H$108,7,FALSE)","v":32},{"$f":"VLOOKUP(G$8,Definition!$A$2:$H$108,7,FALSE)","v":33},{"$f":"VLOOKUP(H$8,Definition!$A$2:$H$108,7,FALSE)","v":205},{"$f":"VLOOKUP(I$8,Definition!$A$2:$H$108,7,FALSE)","v":45},{"$f":"VLOOKUP(J$8,Definition!$A$2:$H$108,7,FALSE)","v":49},{"$f":"VLOOKUP(K$8,Definition!$A$2:$H$108,7,FALSE)","v":34},{"$f":"VLOOKUP(L$8,Definition!$A$2:$H$108,7,FALSE)","v":211},{"$f":"VLOOKUP(M$8,Definition!$A$2:$H$108,7,FALSE)","v":{"$error":"#N/A"}},{"$f":"VLOOKUP(N$8,Definition!$A$2:$H$108,7,FALSE)","v":{"$error":"#N/A"}},{"$f":"VLOOKUP(O$8,Definition!$A$2:$H$108,7,FALSE)","v":{"$error":"#N/A"}},{"$f":"VLOOKUP(P$8,Definition!$A$2:$H$108,7,FALSE)","v":{"$error":"#N/A"}},{"$f":"VLOOKUP(Q$8,Definition!$A$2:$H$108,7,FALSE)","v":{"$error":"#N/A"}},{"$f":"VLOOKUP(R$8,Definition!$A$2:$H$108,7,FALSE)","v":{"$error":"#N/A"}},{"$f":"VLOOKUP(S$8,Definition!$A$2:$H$108,7,FALSE)","v":{"$error":"#N/A"}},{"$f":"VLOOKUP(T$8,Definition!$A$2:$H$108,7,FALSE)","v":{"$error":"#N/A"}},{"$f":"VLOOKUP(U$8,Definition!$A$2:$H$108,7,FALSE)","v":{"$error":"#N/A"}},{"$f":"VLOOKUP(V$8,Definition!$A$2:$H$108,7,FALSE)","v":{"$error":"#N/A"}}]
[null,"Pattern",211232,221231,212222,212222,222122,114131,122132,123221,222221,2331112]
[null,"Code128",{"$f":"IFERROR(VLOOKUP(C8,Definition!$A$2:$H$108,2,FALSE),\"\")","v":"Ò"},{"$f":"IFERROR(VLOOKUP(D8,Definition!$A$2:$H$108,2,FALSE),\"\")","v":"4"},{"$f":"IFERROR(VLOOKUP(E8,Definition!$A$2:$H$108,2,FALSE),\"\")","v":" "},{"$f":"IFERROR(VLOOKUP(F8,Definition!$A$2:$H$108,2,FALSE),\"\")","v":" "},{"$f":"IFERROR(VLOOKUP(G8,Definition!$A$2:$H$108,2,FALSE),\"\")","v":"!"},{"$f":"IFERROR(VLOOKUP(H8,Definition!$A$2:$H$108,2,FALSE),\"\")","v":"Í"},{"$f":"IFERROR(VLOOKUP(I8,Definition!$A$2:$H$108,2,FALSE),\"\")","v":"-"},{"$f":"IFERROR(VLOOKUP(J8,Definition!$A$2:$H$108,2,FALSE),\"\")","v":"1"},{"$f":"IFERROR(VLOOKUP(K8,Definition!$A$2:$H$108,2,FALSE),\"\")","v":"\""},{"$f":"IFERROR(VLOOKUP(L8,Definition!$A$2:$H$108,2,FALSE),\"\")","v":"Ó"},{"$f":"IFERROR(VLOOKUP(M8,Definition!$A$2:$H$108,2,FALSE),\"\")","v":""},{"$f":"IFERROR(VLOOKUP(N8,Definition!$A$2:$H$108,2,FALSE),\"\")","v":""},{"$f":"IFERROR(VLOOKUP(O8,Definition!$A$2:$H$108,2,FALSE),\"\")","v":""},{"$f":"IFERROR(VLOOKUP(P8,Definition!$A$2:$H$108,2,FALSE),\"\")","v":""},{"$f":"IFERROR(VLOOKUP(Q8,Definition!$A$2:$H$108,2,FALSE),\"\")","v":""},{"$f":"IFERROR(VLOOKUP(R8,Definition!$A$2:$H$108,2,FALSE),\"\")","v":""},{"$f":"IFERROR(VLOOKUP(S8,Definition!$A$2:$H$108,2,FALSE),\"\")","v":""},{"$f":"IFERROR(VLOOKUP(T8,Definition!$A$2:$H$108,2,FALSE),\"\")","v":""},{"$f":"IFERROR(VLOOKUP(U8,Definition!$A$2:$H$108,2,FALSE),\"\")","v":""},{"$f":"IFERROR(VLOOKUP(V8,Definition!$A$2:$H$108,2,FALSE),\"\")","v":""}]
[null,"Encoding",null,null,null,null,{"$f":"deCode128(C12,TRUE)","v":"<START C>20000001<CODE B>-1<CC2><STOP>"}]
[null,"Text",null,null,null,null,{"$f":"deCode128(C12,FALSE)","v":"20000001-1"}]
[null,"Barcode","Ò4  !Í-1\"Ó"]
[]
[]
[null,null,null,null,null,null,null,null,null,null,"Paste an image of the barcode below the generated barcode to compare"]

{"sheet":"Text","index":3,"n_rows":31,"n_cols":11,"rows_kept":31,"cut":false,"hidden":false,"merged":[[26,1,26,20]]}
[]
[null,"Barcode text:",null,null,null,"20000001-1"]
[]
[null,"Calculate Code 128B, C or B&C:",null,null,null,{"$f":"code128(F2)","v":"Ò4  !Í-1\"Ó"}]
[null,"Position",null,null,"ASCII","Print","Set","Content"]
[null,{"$f":" \"Char #\"&(ROW()-5)","v":"Char #1"},null,null,{"$f":"CODE(F6)","v":210},{"$f":"MID($F$4,ROW()-5,1)","v":"Ò"},{"$f":"E6-207","v":3},{"$f":"VLOOKUP(F6,Definition!$B$2:$H$108,G6+2,FALSE)","v":"START C"}]
[null,{"$f":" \"Char #\"&(ROW()-5)","v":"Char #2"},null,null,{"$f":"CODE(F7)","v":52},{"$f":"MID($F$4,ROW()-5,1)","v":"4"},{"$f":"G6","v":3},{"$f":"VLOOKUP(F7,Definition!$B$2:$H$108,G7+2,FALSE)","v":20}]
[null,"Char #3",null,null,32," ",{"$f":"IF(E7<204,G7,IF(E7=211,1,207-E7))","v":3},{"$f":"VLOOKUP(F8,Definition!$B$2:$H$108,G8+2,FALSE)","v":"00"}]
[null,"Char #4",null,null,32," ",{"$f":"IF(E8<204,G8,IF(E8=211,1,207-E8))","v":3},{"$f":"VLOOKUP(F9,Definition!$B$2:$H$108,G9+2,FALSE)","v":"00"}]
[null,"Char #5",null,null,33,"!",3,{"$f":"VLOOKUP(F10,Definition!$B$2:$H$108,G10+2,FALSE)","v":"01"}]
[null,"Char #6",null,null,205,"Í",3,{"$f":"VLOOKUP(F11,Definition!$B$2:$H$108,G11+2,FALSE)","v":"CODE B"}]
[null,"Char #7",null,null,45,"-",2,{"$f":"VLOOKUP(F12,Definition!$B$2:$H$108,G12+2,FALSE)","v":"-"}]
[null,"Char #8",null,null,49,"1",2,{"$f":"VLOOKUP(F13,Definition!$B$2:$H$108,G13+2,FALSE)","v":1}]
[null,"Char #9",null,null,34,"\"",2,{"$f":"VLOOKUP(F14,Definition!$B$2:$H$108,G14+2,FALSE)","v":"\""}]
[null,"Char #10",null,null,211,"Ó",2,{"$f":"VLOOKUP(F15,Definition!$B$2:$H$108,G15+2,FALSE)","v":"STOP"}]
[null,"Char #11",null,null,{"$f":"CODE(F16)","v":{"$error":"#VALUE!"}},"",{"$f":"IF(E16<204,G12,IF(E16=211,1,207-E16))","v":{"$error":"#VALUE!"}},{"$f":"VLOOKUP(F16,Definition!$B$2:$H$108,G16+2,FALSE)","v":{"$error":"#VALUE!"}}]
[null,"Char #12",null,null,{"$error":"#VALUE!"},"",{"$f":"IF(E17<204,G12,IF(E17=211,1,207-E17))","v":{"$error":"#VALUE!"}},{"$f":"VLOOKUP(F17,Definition!$B$2:$H$108,G17+2,FALSE)","v":{"$error":"#VALUE!"}}]
[null,"Char #13",null,null,{"$f":"CODE(F18)","v":{"$error":"#VALUE!"}},"",{"$f":"IF(E18<204,G12,IF(E18=211,1,207-E18))","v":{"$error":"#VALUE!"}},{"$f":"VLOOKUP(F18,Definition!$B$2:$H$108,G18+2,FALSE)","v":{"$error":"#VALUE!"}}]
[null,"Char #14",null,null,{"$error":"#VALUE!"},"",{"$f":"IF(E19<204,G11,IF(E19=211,1,207-E19))","v":{"$error":"#VALUE!"}},{"$f":"VLOOKUP(F19,Definition!$B$2:$H$108,G19+2,FALSE)","v":{"$error":"#VALUE!"}}]
[null,"Char #15",null,null,{"$error":"#VALUE!"},"",{"$f":"IF(E20<204,G11,IF(E20=211,1,207-E20))","v":{"$error":"#VALUE!"}},{"$f":"VLOOKUP(F20,Definition!$B$2:$H$108,G20+2,FALSE)","v":{"$error":"#VALUE!"}}]
[null,"Char #16",null,null,{"$error":"#VALUE!"},"",{"$f":"IF(E21<204,G19,IF(E21=211,1,207-E21))","v":{"$error":"#VALUE!"}},{"$f":"VLOOKUP(F21,Definition!$B$2:$H$108,G21+2,FALSE)","v":{"$error":"#VALUE!"}}]
[null,"Char #17",null,null,{"$error":"#VALUE!"},"",{"$f":"IF(E22<204,G16,IF(E22=211,1,207-E22))","v":{"$error":"#VALUE!"}},{"$f":"VLOOKUP(F22,Definition!$B$2:$H$108,G22+2,FALSE)","v":{"$error":"#VALUE!"}}]
[null,"Char #18",null,null,{"$error":"#VALUE!"},"",{"$f":"IF(E23<204,G15,IF(E23=211,1,207-E23))","v":{"$error":"#VALUE!"}},{"$f":"VLOOKUP(F23,Definition!$B$2:$H$108,G23+2,FALSE)","v":{"$error":"#VALUE!"}}]
[null,"Char #19",null,null,{"$f":"CODE(F24)","v":{"$error":"#VALUE!"}},"",{"$f":"IF(E24<204,G15,IF(E24=211,1,207-E24))","v":{"$error":"#VALUE!"}},{"$f":"VLOOKUP(F24,Definition!$B$2:$H$108,G24+2,FALSE)","v":{"$error":"#VALUE!"}}]
[null,"Char #20",null,null,{"$error":"#VALUE!"},"",{"$f":"IF(E25<204,G23,IF(E25=211,1,207-E25))","v":{"$error":"#VALUE!"}},{"$f":"VLOOKUP(F25,Definition!$B$2:$H$108,G25+2,FALSE)","v":{"$error":"#VALUE!"}}]
[]
[null,{"$f":"code128(F2)","v":"Ò4  !Í-1\"Ó"}]
[]
[]
[]
[null,null,null,null,null,null,null,null,null,null,"Paste an image of the barcode below the generated barcode to compare"]

{"sheet":"Code","index":4,"n_rows":16,"n_cols":22,"rows_kept":16,"cut":false,"hidden":false,"merged":[[12,2,12,21]]}
[null,"Symbol",1,2,3,4,5,6,7,8,9,10,11,12,13,14,15,16,17,18,19,20]
[null,"Weight",1,1,2,3,4,5,6,7,8,9,10,11,12,13,14,15,16,17,18,19]
[null,"CodeA"]
[null,"CodeB",null,null,null,null,null,null,"-",1,"\"","STOP"]
[null,"CodeC","START C",20,"00","00","01","CODE B"]
[null,"DecA",{"$f":"_xlfn.XLOOKUP(C$3,Code128Def[Set A],Code128Def[Dec],FALSE)","v":false},{"$f":"_xlfn.XLOOKUP(D$3,Code128Def[Set A],Code128Def[Dec],FALSE)","v":false},{"$f":"_xlfn.XLOOKUP(E$3,Code128Def[Set A],Code128Def[Dec],FALSE)","v":false},{"$f":"_xlfn.XLOOKUP(F$3,Code128Def[Set A],Code128Def[Dec],FALSE)","v":false},{"$f":"_xlfn.XLOOKUP(G$3,Code128Def[Set A],Code128Def[Dec],FALSE)","v":false},{"$f":"_xlfn.XLOOKUP(H$3,Code128Def[Set A],Code128Def[Dec],FALSE)","v":false},{"$f":"_xlfn.XLOOKUP(I$3,Code128Def[Set A],Code128Def[Dec],FALSE)","v":false},{"$f":"_xlfn.XLOOKUP(J$3,Code128Def[Set A],Code128Def[Dec],FALSE)","v":false},{"$f":"_xlfn.XLOOKUP(K$3,Code128Def[Set A],Code128Def[Dec],FALSE)","v":false},{"$f":"_xlfn.XLOOKUP(L$3,Code128Def[Set A],Code128Def[Dec],FALSE)","v":false},{"$f":"_xlfn.XLOOKUP(M$3,Code128Def[Set A],Code128Def[Dec],FALSE)","v":false},{"$f":"_xlfn.XLOOKUP(N$3,Code128Def[Set A],Code128Def[Dec],FALSE)","v":false},{"$f":"_xlfn.XLOOKUP(O$3,Code128Def[Set A],Code128Def[Dec],FALSE)","v":false},{"$f":"_xlfn.XLOOKUP(P$3,Code128Def[Set A],Code128Def[Dec],FALSE)","v":false},{"$f":"_xlfn.XLOOKUP(Q$3,Code128Def[Set A],Code128Def[Dec],FALSE)","v":false},{"$f":"_xlfn.XLOOKUP(R$3,Code128Def[Set A],Code128Def[Dec],FALSE)","v":false},{"$f":"_xlfn.XLOOKUP(S$3,Code128Def[Set A],Code128Def[Dec],FALSE)","v":false},{"$f":"_xlfn.XLOOKUP(T$3,Code128Def[Set A],Code128Def[Dec],FALSE)","v":false},{"$f":"_xlfn.XLOOKUP(U$3,Code128Def[Set A],Code128Def[Dec],FALSE)","v":false},{"$f":"_xlfn.XLOOKUP(V$3,Code128Def[Set A],Code128Def[Dec],FALSE)","v":false}]
[null,"DecB",{"$f":"_xlfn.XLOOKUP(1,--EXACT(Code128Def[Set B],C$4),Code128Def[Dec],FALSE)","v":false},{"$f":"_xlfn.XLOOKUP(1,--EXACT(Code128Def[Set B],D$4),Code128Def[Dec],FALSE)","v":false},{"$f":"_xlfn.XLOOKUP(1,--EXACT(Code128Def[Set B],E$4),Code128Def[Dec],FALSE)","v":false},{"$f":"_xlfn.XLOOKUP(1,--EXACT(Code128Def[Set B],F$4),Code128Def[Dec],FALSE)","v":false},{"$f":"_xlfn.XLOOKUP(1,--EXACT(Code128Def[Set B],G$4),Code128Def[Dec],FALSE)","v":false},{"$f":"_xlfn.XLOOKUP(1,--EXACT(Code128Def[Set B],H$4),Code128Def[Dec],FALSE)","v":false},{"$f":"_xlfn.XLOOKUP(1,--EXACT(Code128Def[Set B],I$4),Code128Def[Dec],FALSE)","v":13},{"$f":"_xlfn.XLOOKUP(1,--EXACT(Code128Def[Set B],J$4),Code128Def[Dec],FALSE)","v":17},{"$f":"_xlfn.XLOOKUP(1,--EXACT(Code128Def[Set B],K$4),Code128Def[Dec],FALSE)","v":2},{"$f":"_xlfn.XLOOKUP(1,--EXACT(Code128Def[Set B],L$4),Code128Def[Dec],FALSE)","v":106},{"$f":"_xlfn.XLOOKUP(1,--EXACT(Code128Def[Set B],M$4),Code128Def[Dec],FALSE)","v":false},{"$f":"_xlfn.XLOOKUP(1,--EXACT(Code128Def[Set B],N$4),Code128Def[Dec],FALSE)","v":false},{"$f":"_xlfn.XLOOKUP(1,--EXACT(Code128Def[Set B],O$4),Code128Def[Dec],FALSE)","v":false},{"$f":"_xlfn.XLOOKUP(1,--EXACT(Code128Def[Set B],P$4),Code128Def[Dec],FALSE)","v":false},{"$f":"_xlfn.XLOOKUP(1,--EXACT(Code128Def[Set B],Q$4),Code128Def[Dec],FALSE)","v":false},{"$f":"_xlfn.XLOOKUP(1,--EXACT(Code128Def[Set B],R$4),Code128Def[Dec],FALSE)","v":false},{"$f":"_xlfn.XLOOKUP(1,--EXACT(Code128Def[Set B],S$4),Code128Def[Dec],FALSE)","v":false},{"$f":"_xlfn.XLOOKUP(1,--EXACT(Code128Def[Set B],T$4),Code128Def[Dec],FALSE)","v":false},{"$f":"_xlfn.XLOOKUP(1,--EXACT(Code128Def[Set B],U$4),Code128Def[Dec],FALSE)","v":false},{"$f":"_xlfn.XLOOKUP(1,--EXACT(Code128Def[Set B],V$4),Code128Def[Dec],FALSE)","v":false}]
[null,"DecC",{"$f":"_xlfn.XLOOKUP(C$5,Code128Def[Set C],Code128Def[Dec],FALSE)","v":105},{"$f":"_xlfn.XLOOKUP(D$5,Code128Def[Set C],Code128Def[Dec],FALSE)","v":20},0,{"$f":"_xlfn.XLOOKUP(F$5,Code128Def[Set C],Code128Def[Dec],FALSE)","v":0},{"$f":"_xlfn.XLOOKUP(G$5,Code128Def[Set C],Code128Def[Dec],FALSE)","v":1},{"$f":"_xlfn.XLOOKUP(H$5,Code128Def[Set C],Code128Def[Dec],FALSE)","v":100},{"$f":"_xlfn.XLOOKUP(I$5,Code128Def[Set C],Code128Def[Dec],FALSE)","v":false},{"$f":"_xlfn.XLOOKUP(J$5,Code128Def[Set C],Code128Def[Dec],FALSE)","v":false},{"$f":"_xlfn.XLOOKUP(K$5,Code128Def[Set C],Code128Def[Dec],FALSE)","v":false},{"$f":"_xlfn.XLOOKUP(L$5,Code128Def[Set C],Code128Def[Dec],FALSE)","v":false},{"$f":"_xlfn.XLOOKUP(M$5,Code128Def[Set C],Code128Def[Dec],FALSE)","v":false},{"$f":"_xlfn.XLOOKUP(N$5,Code128Def[Set C],Code128Def[Dec],FALSE)","v":false},{"$f":"_xlfn.XLOOKUP(O$5,Code128Def[Set C],Code128Def[Dec],FALSE)","v":false},{"$f":"_xlfn.XLOOKUP(P$5,Code128Def[Set C],Code128Def[Dec],FALSE)","v":false},{"$f":"_xlfn.XLOOKUP(Q$5,Code128Def[Set C],Code128Def[Dec],FALSE)","v":false},{"$f":"_xlfn.XLOOKUP(R$5,Code128Def[Set C],Code128Def[Dec],FALSE)","v":false},{"$f":"_xlfn.XLOOKUP(S$5,Code128Def[Set C],Code128Def[Dec],FALSE)","v":false},{"$f":"_xlfn.XLOOKUP(T$5,Code128Def[Set C],Code128Def[Dec],FALSE)","v":false},{"$f":"_xlfn.XLOOKUP(U$5,Code128Def[Set C],Code128Def[Dec],FALSE)","v":false},{"$f":"_xlfn.XLOOKUP(V$5,Code128Def[Set C],Code128Def[Dec],FALSE)","v":false}]
[null,"Dec",{"$f":"IF(C6<>FALSE,C6,IF(C7<>FALSE,C7,IF(C8<>FALSE,C8,NA())))","v":105},{"$f":"IF(D6<>FALSE,D6,IF(D7<>FALSE,D7,IF(D8<>FALSE,D8,NA())))","v":20},0,0,1,100,13,17,2,106,{"$error":"#N/A"},{"$error":"#N/A"},{"$error":"#N/A"},{"$error":"#N/A"},{"$error":"#N/A"},{"$error":"#N/A"},{"$error":"#N/A"},{"$error":"#N/A"},{"$error":"#N/A"},{"$error":"#N/A"}]
[null,"Code128",{"$f":"_xlfn.IFNA(_xlfn.XLOOKUP(C9,Code128Def[Dec],Code128Def[Barcode],FALSE),\"\")","v":"Ò"},{"$f":"_xlfn.IFNA(_xlfn.XLOOKUP(D9,Code128Def[Dec],Code128Def[Barcode],FALSE),\"\")","v":"4"},{"$f":"_xlfn.IFNA(_xlfn.XLOOKUP(E9,Code128Def[Dec],Code128Def[Barcode],FALSE),\"\")","v":" "},{"$f":"_xlfn.IFNA(_xlfn.XLOOKUP(F9,Code128Def[Dec],Code128Def[Barcode],FALSE),\"\")","v":" "},{"$f":"_xlfn.IFNA(_xlfn.XLOOKUP(G9,Code128Def[Dec],Code128Def[Barcode],FALSE),\"\")","v":"!"},{"$f":"_xlfn.IFNA(_xlfn.XLOOKUP(H9,Code128Def[Dec],Code128Def[Barcode],FALSE),\"\")","v":"Í"},{"$f":"_xlfn.IFNA(_xlfn.XLOOKUP(I9,Code128Def[Dec],Code128Def[Barcode],FALSE),\"\")","v":"-"},{"$f":"_xlfn.IFNA(_xlfn.XLOOKUP(J9,Code128Def[Dec],Code128Def[Barcode],FALSE),\"\")","v":"1"},{"$f":"_xlfn.IFNA(_xlfn.XLOOKUP(K9,Code128Def[Dec],Code128Def[Barcode],FALSE),\"\")","v":"\""},{"$f":"_xlfn.IFNA(_xlfn.XLOOKUP(L9,Code128Def[Dec],Code128Def[Barcode],FALSE),\"\")","v":"Ó"},{"$f":"_xlfn.IFNA(_xlfn.XLOOKUP(M9,Code128Def[Dec],Code128Def[Barcode],FALSE),\"\")","v":""},{"$f":"_xlfn.IFNA(_xlfn.XLOOKUP(N9,Code128Def[Dec],Code128Def[Barcode],FALSE),\"\")","v":""},{"$f":"_xlfn.IFNA(_xlfn.XLOOKUP(O9,Code128Def[Dec],Code128Def[Barcode],FALSE),\"\")","v":""},{"$f":"_xlfn.IFNA(_xlfn.XLOOKUP(P9,Code128Def[Dec],Code128Def[Barcode],FALSE),\"\")","v":""},{"$f":"_xlfn.IFNA(_xlfn.XLOOKUP(Q9,Code128Def[Dec],Code128Def[Barcode],FALSE),\"\")","v":""},{"$f":"_xlfn.IFNA(_xlfn.XLOOKUP(R9,Code128Def[Dec],Code128Def[Barcode],FALSE),\"\")","v":""},{"$f":"_xlfn.IFNA(_xlfn.XLOOKUP(S9,Code128Def[Dec],Code128Def[Barcode],FALSE),\"\")","v":""},{"$f":"_xlfn.IFNA(_xlfn.XLOOKUP(T9,Code128Def[Dec],Code128Def[Barcode],FALSE),\"\")","v":""},{"$f":"_xlfn.IFNA(_xlfn.XLOOKUP(U9,Code128Def[Dec],Code128Def[Barcode],FALSE),\"\")","v":""},{"$f":"_xlfn.IFNA(_xlfn.XLOOKUP(V9,Code128Def[Dec],Code128Def[Barcode],FALSE),\"\")","v":""}]
[null,"Endocing",null,null,null,null,null,null,null,{"$f":"deCode128(C13,TRUE)","v":"<START C>20000001<CODE B>-1<CC2><STOP>"}]
[null,"Text",null,null,null,null,null,null,null,{"$f":"deCode128(C13,FALSE)","v":"20000001-1"}]
[null,"Barcode",{"$f":"C10&D10&E10&F10&G10&H10&I10&J10&K10&L10&M10&N10&O10&P10&Q10&R10&S10&T10&U10&V10","v":"Ò4  !Í-1\"Ó"}]
[]
[]
[null,null,null,null,null,null,null,null,null,null,"Paste an image of the barcode below the generated barcode to compare"]

{"sheet":"Definition","index":5,"n_rows":108,"n_cols":8,"rows_kept":108,"cut":false,"hidden":false,"merged":[]}
["Elements","Barcode","Dec","Set A","Set B","Set C","Font","Latin"]
[212222,{"$f":"CHAR(Definition!$G2)","v":" "},0,"SP","SP","00",32,"SP"]
[222122,{"$f":"CHAR(Definition!$G3)","v":"!"},1,"!","!","01",33,"!"]
[222221,{"$f":"CHAR(Definition!$G4)","v":"\""},2,"\"","\"","02",34,"\""]
[121223,{"$f":"CHAR(Definition!$G5)","v":"#"},3,"#","#","03",35,"#"]
[121322,{"$f":"CHAR(Definition!$G6)","v":"$"},4,"$","$","04",36,"$"]
[131222,{"$f":"CHAR(Definition!$G7)","v":"%"},5,"%","%","05",37,"%"]
[122213,{"$f":"CHAR(Definition!$G8)","v":"&"},6,"&","&","06",38,"&"]
[122312,{"$f":"CHAR(Definition!$G9)","v":"'"},7,"'","'","07",39,"'"]
[132212,{"$f":"CHAR(Definition!$G10)","v":"("},8,"(","(","08",40,"("]
[221213,{"$f":"CHAR(Definition!$G11)","v":")"},9,")",")","09",41,")"]
[221312,{"$f":"CHAR(Definition!$G12)","v":"*"},10,"*","*",10,42,"*"]
[231212,{"$f":"CHAR(Definition!$G13)","v":"+"},11,"+","+",11,43,"+"]
[112232,{"$f":"CHAR(Definition!$G14)","v":","},12,",",",",12,44,","]
[122132,{"$f":"CHAR(Definition!$G15)","v":"-"},13,"-","-",13,45,"-"]
[122231,{"$f":"CHAR(Definition!$G16)","v":"."},14,".",".",14,46,"."]
[113222,{"$f":"CHAR(Definition!$G17)","v":"/"},15,"/","/",15,47,"/"]
[123122,{"$f":"CHAR(Definition!$G18)","v":"0"},16,0,0,16,48,"0"]
[123221,{"$f":"CHAR(Definition!$G19)","v":"1"},17,1,1,17,49,"1"]
[223211,{"$f":"CHAR(Definition!$G20)","v":"2"},18,2,2,18,50,"2"]
[221132,{"$f":"CHAR(Definition!$G21)","v":"3"},19,3,3,19,51,"3"]
[221231,{"$f":"CHAR(Definition!$G22)","v":"4"},20,4,4,20,52,"4"]
[213212,{"$f":"CHAR(Definition!$G23)","v":"5"},21,5,5,21,53,"5"]
[223112,{"$f":"CHAR(Definition!$G24)","v":"6"},22,6,6,22,54,"6"]
[312131,{"$f":"CHAR(Definition!$G25)","v":"7"},23,7,7,23,55,"7"]
[311222,{"$f":"CHAR(Definition!$G26)","v":"8"},24,8,8,24,56,"8"]
[321122,{"$f":"CHAR(Definition!$G27)","v":"9"},25,9,9,25,57,"9"]
[321221,{"$f":"CHAR(Definition!$G28)","v":":"},26,":",":",26,58,":"]
[312212,{"$f":"CHAR(Definition!$G29)","v":";"},27,";",";",27,59,";"]
[322112,{"$f":"CHAR(Definition!$G30)","v":"<"},28,"<","<",28,60,"<"]
[322211,{"$f":"CHAR(Definition!$G31)","v":"="},29,"=","=",29,61,"="]
[212123,{"$f":"CHAR(Definition!$G32)","v":">"},30,">",">",30,62,">"]
[212321,{"$f":"CHAR(Definition!$G33)","v":"?"},31,"?","?",31,63,"?"]
[232121,{"$f":"CHAR(Definition!$G34)","v":"@"},32,"@","@",32,64,"@"]
[111323,{"$f":"CHAR(Definition!$G35)","v":"A"},33,"A","A",33,65,"A"]
[131123,{"$f":"CHAR(Definition!$G36)","v":"B"},34,"B","B",34,66,"B"]
[131321,{"$f":"CHAR(Definition!$G37)","v":"C"},35,"C","C",35,67,"C"]
[112313,{"$f":"CHAR(Definition!$G38)","v":"D"},36,"D","D",36,68,"D"]
[132113,{"$f":"CHAR(Definition!$G39)","v":"E"},37,"E","E",37,69,"E"]
[132311,{"$f":"CHAR(Definition!$G40)","v":"F"},38,"F","F",38,70,"F"]
[211313,{"$f":"CHAR(Definition!$G41)","v":"G"},39,"G","G",39,71,"G"]
[231113,{"$f":"CHAR(Definition!$G42)","v":"H"},40,"H","H",40,72,"H"]
[231311,{"$f":"CHAR(Definition!$G43)","v":"I"},41,"I","I",41,73,"I"]
[112133,{"$f":"CHAR(Definition!$G44)","v":"J"},42,"J","J",42,74,"J"]
[112331,{"$f":"CHAR(Definition!$G45)","v":"K"},43,"K","K",43,75,"K"]
[132131,{"$f":"CHAR(Definition!$G46)","v":"L"},44,"L","L",44,76,"L"]
[113123,{"$f":"CHAR(Definition!$G47)","v":"M"},45,"M","M",45,77,"M"]
[113321,{"$f":"CHAR(Definition!$G48)","v":"N"},46,"N","N",46,78,"N"]
[133121,{"$f":"CHAR(Definition!$G49)","v":"O"},47,"O","O",47,79,"O"]
[313121,{"$f":"CHAR(Definition!$G50)","v":"P"},48,"P","P",48,80,"P"]
[211331,{"$f":"CHAR(Definition!$G51)","v":"Q"},49,"Q","Q",49,81,"Q"]
[231131,{"$f":"CHAR(Definition!$G52)","v":"R"},50,"R","R",50,82,"R"]
[213113,{"$f":"CHAR(Definition!$G53)","v":"S"},51,"S","S",51,83,"S"]
[213311,{"$f":"CHAR(Definition!$G54)","v":"T"},52,"T","T",52,84,"T"]
[213131,{"$f":"CHAR(Definition!$G55)","v":"U"},53,"U","U",53,85,"U"]
[311123,{"$f":"CHAR(Definition!$G56)","v":"V"},54,"V","V",54,86,"V"]
[311321,{"$f":"CHAR(Definition!$G57)","v":"W"},55,"W","W",55,87,"W"]
[331121,{"$f":"CHAR(Definition!$G58)","v":"X"},56,"X","X",56,88,"X"]
[312113,{"$f":"CHAR(Definition!$G59)","v":"Y"},57,"Y","Y",57,89,"Y"]
[312311,{"$f":"CHAR(Definition!$G60)","v":"Z"},58,"Z","Z",58,90,"Z"]
[332111,{"$f":"CHAR(Definition!$G61)","v":"["},59,"[","[",59,91,"["]
[314111,{"$f":"CHAR(Definition!$G62)","v":"\\"},60,"\\","\\",60,92,"\\"]
[221411,{"$f":"CHAR(Definition!$G63)","v":"]"},61,"]","]",61,93,"]"]
[431111,{"$f":"CHAR(Definition!$G64)","v":"^"},62,"^","^",62,94,"^"]
[111224,{"$f":"CHAR(Definition!$G65)","v":"_"},63,"_","_",63,95,"_"]
[111422,{"$f":"CHAR(Definition!$G66)","v":"`"},64,"NUL","'",64,96,"`"]
[121124,{"$f":"CHAR(Definition!$G67)","v":"a"},65,"SOH","a",65,97,"a"]
[121421,{"$f":"CHAR(Definition!$G68)","v":"b"},66,"STX","b",66,98,"b"]
[141122,{"$f":"CHAR(Definition!$G69)","v":"c"},67,"ETX","c",67,99,"c"]
[141221,{"$f":"CHAR(Definition!$G70)","v":"d"},68,"EOT","d",68,100,"d"]
[112214,{"$f":"CHAR(Definition!$G71)","v":"e"},69,"ENQ","e",69,101,"e"]
[112412,{"$f":"CHAR(Definition!$G72)","v":"f"},70,"ACK","f",70,102,"f"]
[122114,{"$f":"CHAR(Definition!$G73)","v":"g"},71,"BEL","g",71,103,"g"]
[122411,{"$f":"CHAR(Definition!$G74)","v":"h"},72,"BS","h",72,104,"h"]
[142112,{"$f":"CHAR(Definition!$G75)","v":"i"},73,"HT","i",73,105,"i"]
[142211,{"$f":"CHAR(Definition!$G76)","v":"j"},74,"LF","j",74,106,"j"]
[241211,{"$f":"CHAR(Definition!$G77)","v":"k"},75,"VT","k",75,107,"k"]
[221114,{"$f":"CHAR(Definition!$G78)","v":"l"},76,"FF","l",76,108,"l"]
[413111,{"$f":"CHAR(Definition!$G79)","v":"m"},77,"CR","m",77,109,"m"]
[241112,{"$f":"CHAR(Definition!$G80)","v":"n"},78,"SO","n",78,110,"n"]
[134111,{"$f":"CHAR(Definition!$G81)","v":"o"},79,"SI","o",79,111,"o"]
[111242,{"$f":"CHAR(Definition!$G82)","v":"p"},80,"DLE","p",80,112,"p"]
[121142,{"$f":"CHAR(Definition!$G83)","v":"q"},81,"DC1","q",81,113,"q"]
[121241,{"$f":"CHAR(Definition!$G84)","v":"r"},82,"DC2","r",82,114,"r"]
[114212,{"$f":"CHAR(Definition!$G85)","v":"s"},83,"DC3","s",83,115,"s"]
[124112,{"$f":"CHAR(Definition!$G86)","v":"t"},84,"DC4","t",84,116,"t"]
[124211,{"$f":"CHAR(Definition!$G87)","v":"u"},85,"NAK","u",85,117,"u"]
[411212,{"$f":"CHAR(Definition!$G88)","v":"v"},86,"SYN","v",86,118,"v"]
[421112,{"$f":"CHAR(Definition!$G89)","v":"w"},87,"ETB","w",87,119,"w"]
[421211,{"$f":"CHAR(Definition!$G90)","v":"x"},88,"CAN","x",88,120,"x"]
[212141,{"$f":"CHAR(Definition!$G91)","v":"y"},89,"EM","y",89,121,"y"]
[214121,{"$f":"CHAR(Definition!$G92)","v":"z"},90,"SUB","z",90,122,"z"]
[412121,{"$f":"CHAR(Definition!$G93)","v":"{"},91,"ESC","{",91,123,"{"]
[111143,{"$f":"CHAR(Definition!$G94)","v":"|"},92,"FS","|",92,124,"|"]
[111341,{"$f":"CHAR(Definition!$G95)","v":"}"},93,"GS","}",93,125,"}"]
[131141,{"$f":"CHAR(Definition!$G96)","v":"~"},94,"RS","~",94,126,"~"]
[114113,{"$f":"CHAR(Definition!$G97)","v":"È"},95,"US","DEL",95,200,"DEL"]
[114311,{"$f":"CHAR(Definition!$G98)","v":"É"},96,"FNC 3","FNC 3",96,201,"Ç"]
[411113,{"$f":"CHAR(Definition!$G99)","v":"Ê"},97,"FNC 2","FNC 2",97,202,"ü"]
[411311,{"$f":"CHAR(Definition!$G100)","v":"Ë"},98,"SHIFT","SHIFT",98,203,"é"]
[113141,{"$f":"CHAR(Definition!$G101)","v":"Ì"},99,"CODE C","CODE C",99,204,"â"]
[114131,{"$f":"CHAR(Definition!$G102)","v":"Í"},100,"CODE B","FNC 4","CODE B",205,"ä"]
[311141,{"$f":"CHAR(Definition!$G103)","v":"Î"},101,"FNC 4","CODE A","CODE A",206,"à"]
[411131,{"$f":"CHAR(Definition!$G104)","v":"Ï"},102,"FNC 1","FNC 1","FNC 1",207,"å"]
[211412,{"$f":"CHAR(Definition!$G105)","v":"Ð"},103,"START A","START A","START A",208,"‡"]
[211214,{"$f":"CHAR(Definition!$G106)","v":"Ñ"},104,"START B","START B","START B",209,"ˆ"]
[211232,{"$f":"CHAR(Definition!$G107)","v":"Ò"},105,"START C","START C","START C",210,"‰"]
[2331112,{"$f":"CHAR(Definition!$G108)","v":"Ó"},106,"STOP","STOP","STOP",211,"Š"]